Cogmind - Beta 17.1 @@@ ROGUE MODE // 2026.09.02 @ 09:15:50 Player: Kotyk77 Result: Destroyed by H-66 Slayer with Gauss Rifle Performance ------------- Evolutions (4) 2000 Regions Visited (7) 1400 Robots Destroyed (87) 435 Value Destroyed (2501) 2501 Prototype IDs (9) 180 Alien Tech Used (0) 0 Bonus (576) 576 TOTAL SCORE: 7092 Bonus ------- High Alert Combat Kills 76 Entered DSFs 500 Cogmind --------- Core Integrity 0/850 Matter 199/300 Energy 100/100 System Corruption 0% Temperature Cool (0) Movement Core (50) Location -6/Factory Parts ------- > --- POWER (1) -------- (None) > --- PROPULSION (6) --- (None) > --- UTILITY (5) ------ Machine Analyzer Advanced Visual Processing Unit > --- WEAPON (3) ------- (None) > --- INVENTORY (5) ---- Fission Core Hardened Medium Armor Plating High-powered Shotgun Gauss Rifle Gauss Rifle Peak State ------------ > --- POWER ------------ Light Nuclear Core > --- PROPULSION ------- Armored Treads Medium Treads Medium Treads Medium Treads > --- UTILITY ---------- Medium Storage Unit Machine Analyzer Advanced Visual Processing Unit Kinecellerator Hardened Light Armor Plating > --- WEAPON ----------- High-powered Shotgun Improved Grenade Launcher Mace > --- INVENTORY -------- Improved Ion Engine Medium Treads Medium Treads Improved Flight Unit Improved Flight Unit Cesium-ion Thruster Cesium-ion Thruster Hardened Medium Armor Plating Advanced EMP Blaster Precision Grenade Launcher [Rating: 42] Favorites ----------- Power Light Nuclear Core Engine Light Deuterium Engine Power Core Light Nuclear Core Propulsion Light Treads Treads Light Treads Leg Titanium Leg Wheel Wheel Flight Unit Cesium-ion Thruster Utility Medium Storage Unit Device Heat Sink Storage Medium Storage Unit Processor Machine Analyzer Protection Hardened Medium Armor Plating Weapon Mace Energy Gun Beam Rifle Ballistic Gun Improved Assault Rifle Ballistic Cannon Improved Light Cannon Launcher Improved Grenade Launcher Impact Weapon Mace Slashing Weapon Axe Build | -11 -10 -9 -9 -8 -7 -7 -6 ------- Run | Yrd Mat Mat Sto Mat Fac DSF Fac Slots Evolved 8 | . . 2 . 2 2 . 2 Power . | . . . . . . . . Propulsion 4 | . . . . 2 . . 2 Utility 3 | . . 1 . . 2 . . Weapon 1 | . . 1 . . . . . Parts Attached 91 | 7 2 5 28 27 2 13 7 Power 9 | 1 . 1 3 2 . 1 1 Engine 6 | 1 . . 3 1 . 1 . Core 3 | . . 1 . 1 . . 1 Reactor . | . . . . . . . . Propulsion 31 | 2 . . 6 10 . 12 1 Treads 21 | . . . 3 8 . 9 1 Leg 3 | . . . 3 . . . . Wheel 2 | 2 . . . . . . . Hover . | . . . . . . . . Flight 5 | . . . . 2 . 3 . Utility 21 | 2 1 2 9 4 2 . 1 Device 10 | 1 . 2 5 . 1 . 1 Storage 2 | 1 1 . . . . . . Processor 2 | . . . . 1 1 . . Hackware . | . . . . . . . . Protection 7 | . . . 4 3 . . . Artifact . | . . . . . . . . Weapon 30 | 2 1 2 10 11 . . 4 Energy Gun 11 | 2 1 1 2 5 . . . Energy Cannon . | . . . . . . . . Ballistic Gun 10 | . . . 5 3 . . 2 Ballistic Cannon 1 | . . . 1 . . . . Launcher 6 | . . . 2 3 . . 1 Special Weapon . | . . . . . . . . Impact Weapon 1 | . . 1 . . . . . Slashing Weapon 1 | . . . . . . . 1 Piercing Weapon . | . . . . . . . . Special Melee Weapon . | . . . . . . . . Unidentified Prototypes 6 | . . . 2 4 . . . Parts Lost 33 | . . . 10 3 . 8 12 Power 5 | . . . 2 . . 2 1 Propulsion 13 | . . . 2 1 . 2 8 Utility 8 | . . . 4 1 . 2 1 Weapon 7 | . . . 2 1 . 2 2 Highest Loss Streak 12 | . . . 3 1 . 5 12 To Critical Strikes 1 | . . . . . . . 1 Average Backups 9 | 3 6 9 9 9 8 9 7 Power . | . 1 1 . 1 1 . . Propulsion 5 | 1 3 6 7 5 4 6 1 Utility 1 | . 1 1 1 2 1 1 1 Weapon 1 | . 1 . . 1 2 2 3 Tool/Special . | . . . . . . . . Unused Backups 21 | . . 6 5 6 . . 4 Power 5 | . . 2 2 . . . 1 Propulsion 7 | . . 4 1 2 . . . Utility 5 | . . . 2 2 . . 1 Weapon 4 | . . . . 2 . . 2 Tool/Special . | . . . . . . . . Average Slot Usage (%) 93 | . 100 99 96 97 96 89 54 Engine 6 | . 14 6 7 6 . 3 . Core 2 | . . 4 3 2 7 2 . Treads 17 | . . . 5 31 23 27 13 Leg 5 | . . . 14 . . . . Wheel 2 | . 28 22 2 . . . . Flight 2 | . . . . 2 7 1 13 Device 9 | . 14 22 14 5 7 4 . Storage 9 | . 14 11 11 9 7 7 5 Processor 3 | . . . . 3 11 15 13 Protection 6 | . . . 6 8 7 6 . Energy Gun 10 | . 28 30 5 14 . . . Ballistic Gun 5 | . . . 13 1 7 4 1 Launcher 2 | . . . 3 1 7 7 1 Impact Weapon 7 | . . 1 9 9 7 4 . Peak Build Rating 42 | 7 7 17 27 29 34 42 39 Average Rating 22 | 5 7 13 21 22 33 36 28 On Entrance 15 | . 7 7 17 14 28 34 19 Avg Prop Armor Cover (%) 9 | . . . . 1 1 11 27 Naked Turns . | . . . . . . . . Heaviest Build 40 | 14 19 24 39 35 35 40 26 Greatest Support 104 | 26 26 26 40 80 60 104 104 Greatest Overweight (x) 4 | . . . 2 . . 1 4 Average Overweight (x) . | . . . . . . . . Largest Inventory Capacity 10 | 8 10 10 10 10 10 10 10 Average Capacity 9 | 7 9 10 10 10 10 10 9 Most Carried 10 | 5 7 10 10 10 9 10 10 Average Carried 9 | 3 6 9 9 9 8 9 7 Final Capacity 10 | 8 10 10 10 10 10 10 5 Final Carried 10 | 5 7 10 10 10 8 9 5 Class Distribution -------------------- 56% | Mutant 37% | Scavenger-Mutant 3% | Gunner Dominant Class ---------------- Mutant | -10/Materials Gunner | -9/Materials Mutant | -9/Storage Scavenger-Mutant | -8/Materials Scavenger-Mutant | -7/Factory Mutant | -7/DSF Mutant | -6/Factory Resources | -11 -10 -9 -9 -8 -7 -7 -6 ----------- Run | Yrd Mat Mat Sto Mat Fac DSF Fac Matter Collected 1873 | 270 . . 877 304 . 177 245 Remotely . | . . . . . . . . Salvage Created 2765 | 104 35 . 1368 1003 . 76 179 Parts 182 | 3 3 . 92 62 . 4 18 Haulers Intercepted 4 | . . . 2 2 . . . Recyclers Shooed 3 | . . . . 3 . . . Parts Field Recycled . | . . . . . . . . Retrieved Matter . | . . . . . . . . Parts Self-Destructed . | . . . . . . . . Prevented . | . . . . . . . . Parts Restored . | . . . . . . . . Kills | -11 -10 -9 -9 -8 -7 -7 -6 ------- Run | Yrd Mat Mat Sto Mat Fac DSF Fac Combat Hostiles Destroyed 65 | . 1 . 34 23 . 3 4 Melee 6 | . . . . 4 . . 2 Guns 40 | . 1 . 24 14 . 1 . Cannons 1 | . . . 1 . . . . AOE 15 | . . . 9 2 . 2 2 Classes Destroyed 13 | 2 1 . 8 1 . 1 . Worker 1 | . . . 1 . . . . Builder 7 | . . . 1 1 . . 5 Tunneler 1 | 1 . . . . . . . Hauler 4 | . . . 2 2 . . . Recycler 3 | 1 . . . 2 . . . Operator 2 | . . . 1 1 . . . Drone 1 | . . . 1 . . . . Watcher 4 | . . . 2 2 . . . Swarmer 18 | . . . 7 11 . . . Grunt 22 | . 1 . 17 4 . . . Sentry 17 | . . . 10 7 . . . Specialist 3 | . . . . . . 3 . Hunter 5 | . . . . 1 . . 4 Best Kill Streak 8 | 2 1 . 8 5 . 2 8 Combat Bots Only 7 | . 1 . 7 4 . 2 3 Max Kills in Single Turn 4 | 1 1 . 3 2 . 1 4 Gunslinging 1 | . . . . 1 . . . Exploded 3 | . . . 3 1 . 1 1 Melee 1 | . . . . 1 . . 1 Uniques/NPCs Destroyed . | . . . . . . . . Combat | -11 -10 -9 -9 -8 -7 -7 -6 -------- Run | Yrd Mat Mat Sto Mat Fac DSF Fac Hostile Shots Fired 659 | . 15 2 174 158 . 136 174 Missed 177 | . 5 1 44 38 . 48 41 Hits 482 | . 10 1 130 120 . 88 133 Projectile 482 | . 10 1 130 120 . 88 133 Critical Strikes 14 | . . . 7 3 . 2 2 Damage Taken 6903 | . 108 14 1684 1348 . 1723 2026 Core 1590 | . 24 . 176 105 . 432 853 Absorbed by Shields . | . . . . . . . . Regen/Repaired (Parts) 101 | . . . 101 . . . . Core Remaining (%) 72 | 100 90 . 56 80 . 38 . Volleys Fired 227 | 10 8 . 105 78 . 18 8 Largest 3 | 2 2 . 3 2 . 2 1 Hottest 126 | 90 80 . 105 126 . 72 36 Shots Fired 393 | 20 16 . 177 145 . 27 8 Gun 354 | 20 16 . 165 141 . 11 1 Cannon 5 | . . . 5 . . . . Launcher 34 | . . . 7 4 . 16 7 Special . | . . . . . . . . Kinetic 164 | . . . 147 5 . 11 1 Thermal 181 | 20 8 . 21 132 . . . Explosive 24 | . . . 7 . . 10 7 Electromagnetic 24 | . 8 . 2 8 . 6 . Robot Hit Streak 19 | 6 3 . 19 11 . 7 . Robot Miss Streak 4 | 2 3 . 3 4 . 2 2 Penetration Max . | . . . . . . . . Secondary Targets 5 | . . . 3 2 . . . Max Gunslinging Chain 1 | . . . 1 1 . . . Shots Hit Robots 280 | 13 7 . 127 107 . 16 10 Core Hits 127 | 3 2 . 61 39 . 6 16 Critical Kills . | . . . . . . . . Critical Parts Destroyed 4 | . . . . 4 . . . Critical Strikes 9 | 1 . . . 7 . . 1 Burn 4 | 1 . . . 3 . . . Smash 4 | . . . . 4 . . . Sever 1 | . . . . . . . 1 Melee Attacks 67 | . . 2 16 31 . 1 17 Impact 50 | . . 2 16 31 . 1 . Slashing 17 | . . . . . . . 17 Piercing . | . . . . . . . . Sneak Attacks 4 | . . . 2 2 . . . Combat Hostiles . | . . . . . . . . Follow-up Attacks . | . . . . . . . . Damage Inflicted 7055 | 170 133 . 2699 2132 . 855 1066 Guns 3667 | 170 92 . 1812 1381 . 212 . Cannons 42 | . . . 42 . . . . Explosions 2209 | . 41 . 601 206 . 643 718 Melee 1132 | . . . 244 545 . . 343 Ramming 5 | . . . . . . . 5 Kinetic 1859 | . . . 1626 21 . 212 . Thermal 1827 | 170 62 . 206 1318 . 71 . Explosive 1848 | . . . 601 100 . 429 718 Electromagnetic 384 | . 71 . 22 148 . 143 . Impact 789 | . . . 244 545 . . . Slashing 343 | . . . . . . . 343 Piercing . | . . . . . . . . Highest Corruption 2 | . 1 . 1 2 . . . Average Corruption 1 | . 1 . 1 2 . . . Corruption Purged . | . . . . . . . . Corruption Blocked . | . . . . . . . . Effects 9 | . . . . 9 . . . Message Errors 3 | . . . . 3 . . . Matter Fused 1 | . . . . 1 . . . Heat Flow Errors 1 | . . . . 1 . . . Data Loss (minor) 1 | . . . . 1 . . . Misfires 3 | . . . . 3 . . . Overload Shots . | . . . . . . . . Overflow Damage 203 | . . . 18 142 . 6 37 Projectiles . | . . . . . . . . Explosions 62 | . . . 18 1 . 6 37 Melee 141 | . . . . 141 . . . Knockbacks . | . . . . . . . . Impact . | . . . . . . . . Kinetic . | . . . . . . . . Secondary . | . . . . . . . . Self-Inflicted Damage 61 | . . . . . . 59 2 Shots 2 | . . . . . . 2 . Rammed 2 | . . . . . . . 2 Targets Rammed 2 | . . . . . . . 2 Kicked . | . . . . . . . . Crushed . | . . . . . . . . Highest Temperature 324 | 150 108 . 93 324 . . . Average Temperature 58 | 76 44 . 10 76 . . . Received Heat Transfer 1467 | . 60 . 804 378 . 225 . Siege Activations . | . . . . . . . . Martial Activations . | . . . . . . . . Shielding Activations . | . . . . . . . . Robots Disrupted . | . . . . . . . . Combat Hostiles . | . . . . . . . . Robots Corrupted 2 | . . . . 2 . . . Combat Hostiles 2 | . . . . 2 . . . Parts Fried 5 | . . . . 5 . . . Impact Corruptions 7 | . . . . 7 . . . Robots Melted 1 | . . . . 1 . . . Combat Hostiles 1 | . . . . 1 . . . Parts Melted 10 | 1 . . 2 7 . . . Heat Transferred 4486 | 508 100 . 518 3310 . 50 . Parts Sabotaged . | . . . . . . . . Parts Stolen . | . . . . . . . . Parts Stripped . | . . . . . . . . Power Chain Reactions 5 | . 1 . . 2 . 2 . Alert | -11 -10 -9 -9 -8 -7 -7 -6 ------- Run | Yrd Mat Mat Sto Mat Fac DSF Fac Maximum Alert Level 2 | . . . 2 1 . 1 . Low Security (%) 29 | 100 100 100 28 . 100 31 100 Level 1 61 | . . . 44 99 . 68 . Level 2 9 | . . . 26 . . . . Level 3 . | . . . . . . . . Level 4 . | . . . . . . . . Level 5 . | . . . . . . . . High Security . | . . . . . . . . Max Security . | . . . . . . . . Peak Influence 492 | 5 34 14 492 372 153 237 114 Initial 202 | . 3 14 . 202 153 107 107 Average 240 | 1 3 1 275 304 153 195 69 Influence Increases 2167 | 10 34 2 1050 725 . 178 168 Destroy 0b10 Robot/C 1300 | . 20 . 680 460 . 60 80 Destroy 0b10 Robot/NC 110 | 10 . . 35 40 . . 25 Destroy Leader 366 | . 10 . 188 138 . 10 20 Successful Hack 56 | . . . 46 7 . . 3 Disable Machine 75 | . . . 30 15 . 15 15 Destroy Structure 140 | . 4 2 41 35 . 33 25 Partial Spotted 15 | . . . . 15 . . . Lose Combat Pursuer 105 | . . . 30 15 . 60 . Influence Decreases 2142 | 5 5 35 571 867 185 126 348 Entered New Map 630 | . 2 20 1 278 185 46 98 Time Decay 1182 | 5 3 15 470 559 . . 130 Lost Part 330 | . . . 100 30 . 80 120 Squads Dispatched 18 | . 2 . 8 3 . 2 3 Investigation 6 | . . . 4 1 . . 1 Extermination 1 | . . . . . . . 1 Reinforcement 8 | . 2 . 1 2 . 2 1 Assault . | . . . . . . . . Garrison 3 | . . . 3 . . . . Intercept . | . . . . . . . . Searches Triggered . | . . . . . . . . Construction Impeded 2 | . . . . 1 . . 1 Haulers Reinforced . | . . . . . . . . Active Scanning Responses . | . . . . . . . . Cargo Convoy Interrupts . | . . . . . . . . Stealth | -11 -10 -9 -9 -8 -7 -7 -6 --------- Run | Yrd Mat Mat Sto Mat Fac DSF Fac Distress Signals 3 | . 1 1 1 . . . . Communications Jammed . | . . . . . . . . Distress Signals . | . . . . . . . . Times Spotted 110 | . 6 2 40 36 . 19 7 Peak Tracking Total 10 | . 4 2 6 6 . 10 4 Tactical Retreats 7 | . . . 2 1 . 4 . Traps | -11 -10 -9 -9 -8 -7 -7 -6 ------- Run | Yrd Mat Mat Sto Mat Fac DSF Fac Traps Triggered 4 | . 1 . . 2 . 1 . Indirectly 2 | . . . . 1 . 1 . Trap Hack Attempts . | . . . . . . . . Triggered . | . . . . . . . . Disarmed . | . . . . . . . . Reprogrammed . | . . . . . . . . Reused . | . . . . . . . . Traps Extracted . | . . . . . . . . Installed . | . . . . . . . . Triggered . | . . . . . . . . Machines | -11 -10 -9 -9 -8 -7 -7 -6 ---------- Run | Yrd Mat Mat Sto Mat Fac DSF Fac Machines Disabled 5 | . . . 2 1 . 1 1 Max in Single Turn 1 | . . . 1 1 . 1 1 Garrison Access 2 | . . . 1 1 . . . Machines Repaired . | . . . . . . . . Machines Dismantled . | . . . . . . . . Machines Sabotaged . | . . . . . . . . Overloaded Fab Kills . | . . . . . . . . Hacking | -11 -10 -9 -9 -8 -7 -7 -6 --------- Run | Yrd Mat Mat Sto Mat Fac DSF Fac Machines Accessed 23 | . 1 . 11 8 1 . 2 Terminals 16 | . 1 . 8 5 1 . 1 Fabricators 1 | . . . . . . . 1 Repair Stations 2 | . . . 2 . . . . Recycling Units . | . . . . . . . . Scanalyzers 2 | . . . . 2 . . . Garrison Access 2 | . . . 1 1 . . . Total Hacks 54 | . 1 . 29 17 2 . 5 Successful 31 | . 1 . 15 11 1 . 3 Failed 22 | . . . 14 5 1 . 2 Catastrophic 1 | . . . 1 . . . . Database Lockouts 1 | . . . . 1 . . . Manual 5 | . . . 2 3 . . . Terminals 32 | . 1 . 18 8 2 . 3 Fabricators 2 | . . . . . . . 2 Repair Stations 8 | . . . 8 . . . . Recycling Units . | . . . . . . . . Scanalyzers 8 | . . . . 8 . . . Garrison Access 4 | . . . 3 1 . . . Terminal Hacks 15 | . 1 . 9 3 1 . 1 Part Schematic 1 | . . . 1 . . . . Robot Schematic 1 | . . . 1 . . . . Robot Analysis 1 | . . . 1 . . . . Prototype ID Bank 3 | . 1 . 2 . . . . Open Door 2 | . . . 2 . . . . Open DSF 2 | . . . . . 1 . 1 Level Access Points 1 | . . . . 1 . . . Emergency Access Points 1 | . . . . 1 . . . Terminal Index 1 | . . . 1 . . . . Locate Traps 1 | . . . 1 . . . . Transport Status 1 | . . . . 1 . . . Fabricator Hacks 2 | . . . . . . . 2 Load Schematic 1 | . . . . . . . 1 Build 1 | . . . . . . . 1 Repair Station Hacks 5 | . . . 5 . . . . Scan Component 4 | . . . 4 . . . . Repair 1 | . . . 1 . . . . Recycling Unit Hacks . | . . . . . . . . Scanalyzer 7 | . . . . 7 . . . Insert Component 3 | . . . . 3 . . . Analyze 3 | . . . . 3 . . . Retrieve Study 1 | . . . . 1 . . . Garrison Access Hacks 2 | . . . 1 1 . . . Seal Access 2 | . . . 1 1 . . . Unauthorized Hacks . | . . . . . . . . Terminals . | . . . . . . . . Fabricators . | . . . . . . . . Repair Stations . | . . . . . . . . Recycling Units . | . . . . . . . . Scanalyzers . | . . . . . . . . Garrison Access . | . . . . . . . . Data Cores Recovered . | . . . . . . . . Used . | . . . . . . . . Hacking Detections 14 | . . . 7 5 . . 2 Full Trace Events 5 | . . . 4 . . . 1 Feedback Events 1 | . . . 1 . . . . Corruption 1 | . . . 1 . . . . Feedback Blocked . | . . . . . . . . Robot Schematics Acquired 1 | . . . 1 . . . . Robots Built . | . . . . . . . . Authchips . | . . . . . . . . Time . | . . . . . . . . Total Robot Build Rating . | . . . . . . . . Part Schematics Acquired 4 | . . . 1 3 . . . Parts Built 2 | . . . . . . . 2 Authchips . | . . . . . . . . Time 73 | . . . . . . . 73 Total Part Build Rating 6 | . . . . . . . 6 Part Studies Acquired 1 | . . . . 1 . . . Parts Repaired 1 | . . . 1 . . . . Time 32 | . . . 32 . . . . Parts Recycled . | . . . . . . . . Recycled Matter . | . . . . . . . . Retrieved Matter . | . . . . . . . . Retrieved Components . | . . . . . . . . Parts Scanalyzed 3 | . . . . 3 . . . Part Schematics Acquired 3 | . . . . 3 . . . Parts Damaged . | . . . . . . . . Bothacking | -11 -10 -9 -9 -8 -7 -7 -6 ------------ Run | Yrd Mat Mat Sto Mat Fac DSF Fac Used RIF Installer . | . . . . . . . . Robots Hacked . | . . . . . . . . Non-combat . | . . . . . . . . Combat . | . . . . . . . . Robot Hacks Applied . | . . . . . . . . Relay Couplers Released . | . . . . . . . . Fabnet Peak Effective % . | . . . . . . . . Robots Rewired . | . . . . . . . . Allies Hacked . | . . . . . . . . Hacks Repelled . | . . . . . . . . Allies | -11 -10 -9 -9 -8 -7 -7 -6 -------- Run | Yrd Mat Mat Sto Mat Fac DSF Fac Total Allies . | . . . . . . . . Largest Group . | . . . . . . . . Highest-Rated Group . | . . . . . . . . Highest-Rated Ally . | . . . . . . . . Total Orders . | . . . . . . . . Ally Attacks . | . . . . . . . . Total Damage . | . . . . . . . . Kills . | . . . . . . . . Allies Corrupted . | . . . . . . . . Allies Melted . | . . . . . . . . Intel | -11 -10 -9 -9 -8 -7 -7 -6 ------- Run | Yrd Mat Mat Sto Mat Fac DSF Fac Active Infowar (turns) 2088 | 6 118 189 464 710 11 322 268 Optics 600 | . . . . . 10 322 268 Sensors 7 | . . 7 . . . . . IFF 46 | . . . . . . . 46 Seismic 777 | 6 118 189 464 . . . . Machine Analysis 1311 | . . . . 710 11 322 268 Robot Analysis Total 1 | . . . 1 . . . . Derelict Logs Recovered . | . . . . . . . . Drone Launches 3 | . . . 3 . . . . Drone Recoveries 2 | . . . 2 . . . . Exploration | -11 -10 -9 -9 -8 -7 -7 -6 ------------- Run | Yrd Mat Mat Sto Mat Fac DSF Fac Turns Passed 4089 | 96 118 189 1436 1649 11 322 268 Spaces Moved 2174 | 57 96 177 683 783 6 166 206 Core 75 | 1 . . . . . . 74 Treads 1100 | . . . 161 783 6 135 15 Legs 401 | . . . 401 . . . . Wheels 450 | 56 96 177 121 . . . . Hover . | . . . . . . . . Flight 148 | . . . . . . 31 117 Fastest Speed 30 | 50 90 90 90 160 163 30 50 Average Speed 136 | 88 90 90 145 160 163 139 85 Slowest Speed 260 | 90 90 90 260 163 163 175 250 Overloaded Moves . | . . . . . . . . Propulsion Burnouts . | . . . . . . . . Robots Hopped 2 | . . . . . . 2 . Potential Cave-ins . | . . . . . . . . Cave-ins Triggered . | . . . . . . . . Exploration Rate (%) 41 | 4 28 11 90 58 . 93 8 Regions Visited 7 Branch Regions 1 Pre-discovered Areas . | . . . . . . . . Known Exits Taken 2 | . . . . 1 1 . . Unknown Exits Taken 4 | 1 1 1 1 . . . . Scrap Searched . | . . . . . . . . Spaces Dug 15 | . . 2 4 7 . . 2 Terrain Destroyed 138 | . 4 2 35 29 . 39 29 Melee 15 | . . 2 4 7 . . 2 Projectile . | . . . . . . . . AOE 122 | . 4 . 31 22 . 39 26 Terrain Rammed . | . . . . . . . . Walls Destroyed . | . . . . . . . . Machines Disabled . | . . . . . . . . Actions | -11 -10 -9 -9 -8 -7 -7 -6 --------- Run | Yrd Mat Mat Sto Mat Fac DSF Fac Total 2801 | 79 110 209 921 990 7 226 259 Wait 104 | . 4 1 49 28 . 17 5 Move 2163 | 56 95 176 682 782 5 161 206 Hop 2 | . . . . . . 2 . Pick Up 43 | 6 1 12 9 9 . 3 3 Fast Attach 50 | 6 . 2 22 14 . 1 5 Attach 21 | 1 . 2 3 2 2 3 8 Detach 8 | . . 1 1 2 . . 4 Swap 37 | . 2 2 8 14 . 11 . Drop 75 | . . 11 26 30 . 7 1 Fire 227 | 10 8 . 105 78 . 18 8 Melee 67 | . . 2 16 31 . 1 17 Ram 2 | . . . . . . . 2 Kick . | . . . . . . . . Crush . | . . . . . . . . Escape Stasis . | . . . . . . . . Rewire 2 | . . . . . . 2 . Trap . | . . . . . . . . Miscellaneous . | . . . . . . . . Route ------- -11/Scrapyard -10/Materials -9/Materials -9/Storage -8/Materials (discovered 3 exits: *Fac x3) -7/Factory -7/DSF -6/Factory History --------- Turn | Location | Event 21 | -11/Scrapyard | Discovered new exit (range 15) 97 | -11/Scrapyard | Entered Materials 194 | -10/Materials | Discovered new exit (range 7) 215 | -10/Materials | Entered another Materials area 215 | -9/Materials | Evolved 2 slots: Utility x1, Weapon x1 255 | -9/Materials | Discovered new exit (range 4) 404 | -9/Materials | Entered Storage 652 | -9/Storage | Build established: Mutant 833 | -9/Storage | Destroyed 7 combat bots 916 | -9/Storage | Destroyed 7 combat bots 1170 | -9/Storage | Repaired Mace 1512 | -9/Storage | Lost 3 parts (1n1u1w) 1823 | -9/Storage | Build established: Scavenger-Mutant 1824 | -9/Storage | Discovered new exit (range 7) 1840 | -9/Storage | Entered Materials 1840 | -8/Materials | Evolved 2 slots: Propulsion x2 2934 | -8/Materials | Identified exit to Factory 3002 | -8/Materials | Central database locked down 3489 | -8/Materials | Entered Factory 3489 | -7/Factory | Evolved 2 slots: Utility x2 3498 | -7/Factory | Identified exit to DSF 3500 | -7/Factory | Entered DSF 3551 | -7/DSF | Additional patrols routed to DSF 3672 | -7/DSF | Build established: Mutant 3814 | -7/DSF | Core integrity fell below 50% 3816 | -7/DSF | Discovered new exit (range 15) 3822 | -7/DSF | Entered Factory 3822 | -6/Factory | Evolved 2 slots: Propulsion x2 3845 | -6/Factory | Lost 5 parts (1p2n1u1w) 3919 | -6/Factory | Fabricated Axe? 4046 | -6/Factory | Core integrity fell below 50% 4060 | -6/Factory | Core integrity fell below 20% 4087 | -6/Factory | Lost 12 parts (1p8n1u2w) 4090 | -6/Factory | Destroyed by H-66 Slayer with Gauss Rifle Last Messages --------------- 04058_ K-01 Serf collects debris. 04059_ Penetrated by Slug. 04059_ Slug penetrates K-01 Serf. 04059_ K-01 Serf destroyed. 04059_ U-05 Engineer lays Concrete. 04060_ >> Machine Analyzer network decryption results: 04060_ Terminal x1 04060_ U-05 Engineer builds a Wall. 04061_ ALERT: Potential suspicious activity detected, Programmers report to Factory Zone 9Y. 04061_ Connecting with DSF Access... 04062_ >> Machine Analyzer network decryption results: 04062_ Recycling Unit x1 04072_ Penetrated by Slug. 04073_ Slug penetrates Door. 04075_ Slammed into K-01 Serf. 04077_ Destabilizing: Core damaged (-42). 04078_ >> Machine Analyzer network decryption results: 04078_ Recycling Unit x2 04090_ Slug penetrates Wall. Map ----- +----------------------------------------------------+ | ?????????????????????????????????????????????????? | | ?????????????????????????????????????????????????? | | ?????????????????????????????????????????????????? | | ????????????????"""?"""??????????????????????????? | | ????????????????"""?"""?????????????????????????? | | ????????????????"""?"""????????????????????????? | | ????????????????????????????????????????????????# | | ????????????????????????????????????????????????# | | ????????????????????????????????????????????????# | | ????????????????????????????????????????????????# | | ????????????????"""T"""?????????????????????????# | | ????????????????????????????????????????????????+ | | ????????????????????????????????????????????????# | | ????????????????????????????????????????????????# | | ????????????????????????????????????????????????# | | ????????????????????????????????????????????????# | | ????????????????????????????????????????????????# | | ????????????????????????????????????????????????# | | ??????????????##############????????????????????# | | ??????????????# ! #????????????????????# | | ??????????????# #????????????????????# | | ??????????????# """" """" #????################# | | ??????????????# """" """" #????? | | ??????????????# """" """" #????? | | ??????????????# """" """" +????? | | ??????????????# @ #????? | | ??????????????# """" """" #????? | | ??????????????# """" """" #??????# | | ??????????????# """" """" #??????# | | ??????????????# """" """" #??????# | | ??????????????# #??????# | | ????????????########+#######??????# | | ????????????# # ############## | | ????????????# + | | ????????????# # #####+##########"############ | | ????????????# = # #?? """?# = #?#### | | ????????????# ?# # "Y" # """"""" ###T # | | ????????????# ?# # """ " " # """"""" + | | ????????????# ??# # """ # """"""" ###### | | ????????????# ??# # """ # """"""" #????# | | ????????????# ???# # "" # #????? | | ????????????# ???# # "" # """"""" #????? | | ????????????# ????# # # """"""" #????? | | ????????????# ????# ###?####### """"""" #????? | | ????????????##?????? ??????????# """"""" #????? | | ???????????????????? ??????????# #????? | | ???????????????????? ??????????# ! ! #????? | | ???????????????????? ??????????##############????? | | ???????????????????? ????????????????????????????? | | ???????????????????? ????????????????????????????? | +----------------------------------------------------+ Best States ------------- Heat Dissipation 41 Energy Generation 18 Energy Capacity 280 Matter Stores 300 Matter Capacity 300 Sight Range 20 Robot Scan Range 14 Terrain Scan Density 10 Armor Coverage 225 Evasion (%) 63 Recoil Reduction 4 Kinecelleration 30 Item Schematics ----------------- Axe | -9/Storage | Hacked Lgt. Armor Plating | -8/Materials | Scanalyzed Cesium-ion Thruster | -8/Materials | Scanalyzed Hrd. Medium Armor Plating | -8/Materials | Scanalyzed Robot Schematics ------------------ G-34 Mercenary | -9/Storage | Hacked Fabricated ------------ Axe | x2 | -6/Factory Repaired ---------- Mace | 15% | -9/Storage Studied --------- Cesium-ion Thruster | -8/Materials | Hacked Alien Tech Used ----------------- None Achievements -------------- Window Shopping Challenges ------------ None Game ------ Seed MiningCannonFist Manual? 0 Play Time 01:01:57 Cumulative 127.3 hours Start 2026.09.02 @ 07:13:33 End 2026.09.02 @ 09:15:50 Sessions 5 Manual Loads 0 Difficulty Rogue Special Mode None Game No. 108 Rogue 108 Adventurer 0 Explorer 0 Win Type - Total 1 Types 1/0/0/0/0/0/0/0/0/0 Lore% 21 Gallery% 44 Achievement% 30 Wizard Run 0 Options --------- Layout 1 ASCII 0 Keyboard 1 Movement Numpad Keybinds 0 Fullscreen 1 Font 32/SmallcapsGlow Map View 77x35 Zoom Use 0% Tactical HUD 1 Map Filters NONE Filters NONE Steam 1 RUN: dda4f47f-c473-49d6-8c18-4dfd590c59e9